{"text_format":"1","workbook":"xlsx","n_sheets":5,"sheets":["OPEN PADEL","IMPOSTA TURNI PADEL","Es. OPEN PADEL ","Es. IMPOSTA TURNI PADEL ","PARAMETRI"],"not_rendered":{"charts":0,"images":1,"macros":1,"external_links":0,"defined_names":6,"comments":4,"pivot_tables":0},"unopened":[],"bounds":{"document_bytes":16777216,"sheet_cells":100000,"rows_first":2000,"rows_last":500,"rows_between":2000,"halvings":0,"cell_chars":16384,"cell_head_chars":4096},"cells_cut":0,"cells_raw":0,"read":"whole","date_system":"1900"}

{"sheet":"OPEN PADEL","index":0,"n_rows":38,"n_cols":28,"rows_kept":38,"cut":false,"hidden":false,"merged":[[36,1,36,5],[16,1,16,3],[12,1,15,1],[12,2,15,2],[12,4,15,4],[12,3,15,3],[12,25,12,27],[13,25,14,27],[9,12,9,21],[37,18,38,20],[1,12,1,21],[2,12,2,13],[4,14,4,16]]}
[]
[null,null,null,null,null,null,null,null,null,null,null,null,"PARAMETRI TORNEO x stima n. INCONTRI MAX (da compilare)"]
[null,null,null,null,null,null,null,null,null,null,null,null,"n. giorni TORNEO",null,null,"n. campi con luci",null,"n. campi senza luci",null,"superficie",null,"indoor / outdoor"]
[]
[null,null,null,null,null,null,null,null,null,null,null,null,null,"formula DOPPI",null,null,null,"interv. tra DOPPI",null,"1° orario fer.",null,"ultimo orario fer."]
[null,null,null,null,null,null,null,null,null,null,null,null,null,null,null,null,null,null,null,"1° orario fest.",null,"ultimo orario fest."]
[]
[]
[]
[null,null,null,null,null,null,null,null,null,null,null,null,"PROGRAMMA torneo"]
[null,null,null,null,null,null,null,null,null,null,null,null,"PROGRAMMAZIONE INDICATIVA DEGLI INCONTRI DI TUTTI I TABELLONI DEL TORNEO (gg mm- gg mm aaaa)"]
[]
[null,"GARE","n° \nCOPPIE\nISCRITTE\n","n° \nPARTITE \nDA\nPIANIFICARE","ass.","     data","gg/mm","gg/mm","gg/mm","gg/mm","gg/mm","gg/mm","gg/mm","gg/mm","gg/mm","gg/mm","gg/mm","gg/mm","gg/mm","gg/mm","gg/mm","gg/mm","gg/mm","gg/mm","gg/mm","INCONTRI"]
[null,null,null,null,null,"  giorno",{"$f":"IF(G13=\"gg/mm\",\"\",(IF(G13=\"\",\"\",G13)))","v":""},{"$f":"IF(H13=\"gg/mm\",\"\",(IF(H13=\"\",\"\",H13)))","v":""},"","","","","","","","","","","","","","","","","","DATA FINE TORNEO"]
[null,null,null,null,null,"    tipo"]
[null,null,null,null,null,"campi/\nturni","IMPOSTA","IMPOSTA","IMPOSTA","IMPOSTA","IMPOSTA","IMPOSTA","IMPOSTA","IMPOSTA","IMPOSTA","IMPOSTA","IMPOSTA","IMPOSTA","IMPOSTA","IMPOSTA","IMPOSTA","IMPOSTA","IMPOSTA","IMPOSTA","IMPOSTA","n°","n.d."]
[null,null,null,null,null,"MAX INC.",{"$f":"IF('IMPOSTA TURNI PADEL'!B2>0,'IMPOSTA TURNI PADEL'!B2,0)","v":0},{"$f":"IF('IMPOSTA TURNI PADEL'!C2>0,'IMPOSTA TURNI PADEL'!C2,0)","v":0},{"$f":"IF('IMPOSTA TURNI PADEL'!D2>0,'IMPOSTA TURNI PADEL'!D2,0)","v":0},{"$f":"IF('IMPOSTA TURNI PADEL'!E2>0,'IMPOSTA TURNI PADEL'!E2,0)","v":0},{"$f":"IF('IMPOSTA TURNI PADEL'!F2>0,'IMPOSTA TURNI PADEL'!F2,0)","v":0},{"$f":"IF('IMPOSTA TURNI PADEL'!G2>0,'IMPOSTA TURNI PADEL'!G2,0)","v":0},{"$f":"IF('IMPOSTA TURNI PADEL'!H2>0,'IMPOSTA TURNI PADEL'!H2,0)","v":0},{"$f":"IF('IMPOSTA TURNI PADEL'!I2>0,'IMPOSTA TURNI PADEL'!I2,0)","v":0},{"$f":"IF('IMPOSTA TURNI PADEL'!J2>0,'IMPOSTA TURNI PADEL'!J2,0)","v":0},{"$f":"IF('IMPOSTA TURNI PADEL'!K2>0,'IMPOSTA TURNI PADEL'!K2,0)","v":0},{"$f":"IF('IMPOSTA TURNI PADEL'!L2>0,'IMPOSTA TURNI PADEL'!L2,0)","v":0},{"$f":"IF('IMPOSTA TURNI PADEL'!M2>0,'IMPOSTA TURNI PADEL'!M2,0)","v":0},{"$f":"IF('IMPOSTA TURNI PADEL'!N2>0,'IMPOSTA TURNI PADEL'!N2,0)","v":0},{"$f":"IF('IMPOSTA TURNI PADEL'!O2>0,'IMPOSTA TURNI PADEL'!O2,0)","v":0},{"$f":"IF('IMPOSTA TURNI PADEL'!P2>0,'IMPOSTA TURNI PADEL'!P2,0)","v":0},{"$f":"IF('IMPOSTA TURNI PADEL'!Q2>0,'IMPOSTA TURNI PADEL'!Q2,0)","v":0},{"$f":"IF('IMPOSTA TURNI PADEL'!R2>0,'IMPOSTA TURNI PADEL'!R2,0)","v":0},{"$f":"IF('IMPOSTA TURNI PADEL'!S2>0,'IMPOSTA TURNI PADEL'!S2,0)","v":0},{"$f":"IF('IMPOSTA TURNI PADEL'!T2>0,'IMPOSTA TURNI PADEL'!T2,0)","v":0}]
[null,"DOPPIO MASCHILE",null,null,null,null,null,null,null,null,null,null,null,null,null,null,null,"32esimi","16esimi","OTTAVI","QUARTI ","SEMIFINALI ","FINALE"]
[null,null,0,{"$f":"IF(C19>0,C19-Z19-1,0)","v":0},0,{"$f":"E19/C19","v":{"$error":"#DIV/0!"}},null,null,null,null,null,null,null,null,null,null,null,null,null,null,null,null,null,null,null,{"$f":"SUM(G19:Y19)","v":0},null,{"$f":"AA19/Z19","v":{"$error":"#DIV/0!"}}]
[null,"CONCLUSIONE SEZIONE xx"]
[null,null,0,{"$f":"IF(C21>0,C21-Z21-1,0)","v":0},0,{"$f":"E21/C21","v":{"$error":"#DIV/0!"}},null,null,null,null,null,null,null,null,null,null,null,null,null,null,null,null,null,null,null,{"$f":"SUM(G21:Y21)","v":0},null,{"$f":"AA21/Z21","v":{"$error":"#DIV/0!"}}]
[null,"CONCLUSIONE SEZIONE xx"]
[null,null,0,{"$f":"IF(C23>0,C23-Z23-1,0)","v":0},0,{"$f":"E23/C23","v":{"$error":"#DIV/0!"}},null,null,null,null,null,null,null,null,null,null,null,null,null,null,null,null,null,null,null,{"$f":"SUM(G23:Y23)","v":0},null,{"$f":"AA23/Z23","v":{"$error":"#DIV/0!"}}]
[null,"DOPPIO FEMMINILE",null,null,null,null,null,null,null,null,null,null,null,null,null,null,null,"32esimi","16esimi","OTTAVI","QUARTI ","SEMIFINALI ","FINALE"]
[null,null,0,{"$f":"IF(C25>0,C25-Z25-1,0)","v":0},0,{"$f":"E25/C25","v":{"$error":"#DIV/0!"}},null,null,null,null,null,null,null,null,null,null,null,null,null,null,null,null,null,null,null,{"$f":"SUM(G25:Y25)","v":0},null,{"$f":"AA25/Z25","v":{"$error":"#DIV/0!"}}]
[null,"CONCLUSIONE SEZIONE xx"]
[null,null,0,{"$f":"IF(C27>0,C27-Z27-1,0)","v":0},0,{"$f":"E27/C27","v":{"$error":"#DIV/0!"}},null,null,null,null,null,null,null,null,null,null,null,null,null,null,null,null,null,null,null,{"$f":"SUM(G27:Y27)","v":0},null,{"$f":"AA27/Z27","v":{"$error":"#DIV/0!"}}]
[null,"CONCLUSIONE SEZIONE xx"]
[null,null,0,{"$f":"IF(C29>0,C29-Z29-1,0)","v":0},0,{"$f":"E29/C29","v":{"$error":"#DIV/0!"}},null,null,null,null,null,null,null,null,null,null,null,null,null,null,null,null,null,null,null,{"$f":"SUM(G29:Y29)","v":0},null,{"$f":"AA29/Z29","v":{"$error":"#DIV/0!"}}]
[null,"DOPPIO MISTO",null,null,null,null,null,null,null,null,null,null,null,null,null,null,null,"32esimi","16esimi","OTTAVI","QUARTI ","SEMIFINALI ","FINALE"]
[null,null,0,{"$f":"IF(C31>0,C31-Z31-1,0)","v":0},0,{"$f":"E31/C31","v":{"$error":"#DIV/0!"}},null,null,null,null,null,null,null,null,null,null,null,null,null,null,null,null,null,null,null,{"$f":"SUM(G31:Y31)","v":0},null,{"$f":"AA31/Z31","v":{"$error":"#DIV/0!"}}]
[null,"CONCLUSIONE SEZIONE xx"]
[null,null,0,{"$f":"IF(C33>0,C33-Z33-1,0)","v":0},0,{"$f":"E33/C33","v":{"$error":"#DIV/0!"}},null,null,null,null,null,null,null,null,null,null,null,null,null,null,null,null,null,null,null,{"$f":"SUM(G33:Y33)","v":0},null,{"$f":"AA33/Z33","v":{"$error":"#DIV/0!"}}]
[null,"CONCLUSIONE SEZIONE xx"]
[null,null,0,{"$f":"IF(C35>0,C35-Z35-1,0)","v":0},0,{"$f":"E35/C35","v":{"$error":"#DIV/0!"}},null,null,null,null,null,null,null,null,null,null,null,null,null,null,null,null,null,null,null,{"$f":"SUM(G35:Y35)","v":0},null,{"$f":"AA35/Z35","v":{"$error":"#DIV/0!"}}]
[null,"TOTALI",{"$f":"SUM(C18:C35)","v":0},{"$f":"SUM(D18:D35)","v":0},{"$f":"SUM(E19,E25)","v":0},{"$f":"E36/C36","v":{"$error":"#DIV/0!"}}]
[null,"NUMERO DI PARTITE SCHEDULATE\nE CONTROLLO CON MAX INC.",null,null,null,null,{"$f":"SUM(G19,G21,G23,G25,G27,G29,G31,G33,G35)","v":0},{"$f":"SUM(H19,H21,H23,H25,H27,H29,H31,H33,H35)","v":0},0,0,0,0,{"$f":"SUM(M19,M21,M23,M25,M27,M29,M31,M33,M35)","v":0},{"$f":"SUM(N19,N21,N23,N25,N27,N29,N31,N33,N35)","v":0},0,0,0,0,0,0,0,0,0,0,0,{"$f":"SUM(G37:Y37)","v":0},{"$f":"SUM(AA19,AA21,AA23,AA25,AA27,AA29,AA31,AA33,AA35)","v":0},{"$f":"AA37/Z37","v":{"$error":"#DIV/0!"}}]
[null,null,null,null,null,null,null,null,null,null,null,null,"In base alle accettazioni per la conclusione delle sezioni intermedie inserire anche le partite dei relativi tabelloni",null,null,null,null,null,"G.A. xxxxxxxxxxxxx"]

{"sheet":"IMPOSTA TURNI PADEL","index":1,"n_rows":15,"n_cols":20,"rows_kept":15,"cut":false,"hidden":false,"merged":[]}
["N° partite \nschedulate",{"$f":"'OPEN PADEL'!G37","v":0},{"$f":"'OPEN PADEL'!H37","v":0},{"$f":"'OPEN PADEL'!I37","v":0},{"$f":"'OPEN PADEL'!J37","v":0},{"$f":"'OPEN PADEL'!K37","v":0},{"$f":"'OPEN PADEL'!L37","v":0},{"$f":"'OPEN PADEL'!M37","v":0},{"$f":"'OPEN PADEL'!N37","v":0},{"$f":"'OPEN PADEL'!O37","v":0},{"$f":"'OPEN PADEL'!P37","v":0},{"$f":"'OPEN PADEL'!Q37","v":0},{"$f":"'OPEN PADEL'!R37","v":0},{"$f":"'OPEN PADEL'!S37","v":0},{"$f":"'OPEN PADEL'!T37","v":0},{"$f":"'OPEN PADEL'!U37","v":0},{"$f":"'OPEN PADEL'!V37","v":0},{"$f":"'OPEN PADEL'!W37","v":0},{"$f":"'OPEN PADEL'!X37","v":0},{"$f":"'OPEN PADEL'!Y37","v":0}]
["Campi/Turni",{"$f":"SUM(B6:B20)","v":0},0,0,0,0,0,{"$f":"SUM(H6:H20)","v":0},0,0,0,0,0,0,0,0,0,0,0,0]
["data",{"$f":"'OPEN PADEL'!G13","v":"gg/mm"},{"$f":"'OPEN PADEL'!H13","v":"gg/mm"},{"$f":"'OPEN PADEL'!I13","v":"gg/mm"},{"$f":"'OPEN PADEL'!J13","v":"gg/mm"},{"$f":"'OPEN PADEL'!K13","v":"gg/mm"},{"$f":"'OPEN PADEL'!L13","v":"gg/mm"},{"$f":"'OPEN PADEL'!M13","v":"gg/mm"},{"$f":"'OPEN PADEL'!N13","v":"gg/mm"},{"$f":"'OPEN PADEL'!O13","v":"gg/mm"},{"$f":"'OPEN PADEL'!P13","v":"gg/mm"},{"$f":"'OPEN PADEL'!Q13","v":"gg/mm"},{"$f":"'OPEN PADEL'!R13","v":"gg/mm"},{"$f":"'OPEN PADEL'!S13","v":"gg/mm"},{"$f":"'OPEN PADEL'!T13","v":"gg/mm"},{"$f":"'OPEN PADEL'!U13","v":"gg/mm"},{"$f":"'OPEN PADEL'!V13","v":"gg/mm"},{"$f":"'OPEN PADEL'!W13","v":"gg/mm"},{"$f":"'OPEN PADEL'!X13","v":"gg/mm"},{"$f":"'OPEN PADEL'!Y13","v":"gg/mm"}]
["giorno",{"$f":"'OPEN PADEL'!G14","v":""},{"$f":"'OPEN PADEL'!H14","v":""},{"$f":"'OPEN PADEL'!I14","v":""},{"$f":"'OPEN PADEL'!J14","v":""},{"$f":"'OPEN PADEL'!K14","v":""},{"$f":"'OPEN PADEL'!L14","v":""},{"$f":"'OPEN PADEL'!M14","v":""},{"$f":"'OPEN PADEL'!N14","v":""},{"$f":"'OPEN PADEL'!O14","v":""},{"$f":"'OPEN PADEL'!P14","v":""},{"$f":"'OPEN PADEL'!Q14","v":""},{"$f":"'OPEN PADEL'!R14","v":""},{"$f":"'OPEN PADEL'!S14","v":""},{"$f":"'OPEN PADEL'!T14","v":""},{"$f":"'OPEN PADEL'!U14","v":""},{"$f":"'OPEN PADEL'!V14","v":""},{"$f":"'OPEN PADEL'!W14","v":""},{"$f":"'OPEN PADEL'!X14","v":""},{"$f":"'OPEN PADEL'!Y14","v":""}]
["tipo",{"$f":"'OPEN PADEL'!G15","v":0},{"$f":"'OPEN PADEL'!H15","v":0},{"$f":"'OPEN PADEL'!I15","v":0},{"$f":"'OPEN PADEL'!J15","v":0},{"$f":"'OPEN PADEL'!K15","v":0},{"$f":"'OPEN PADEL'!L15","v":0},{"$f":"'OPEN PADEL'!M15","v":0},{"$f":"'OPEN PADEL'!N15","v":0},{"$f":"'OPEN PADEL'!O15","v":0},{"$f":"'OPEN PADEL'!P15","v":0},{"$f":"'OPEN PADEL'!Q15","v":0},{"$f":"'OPEN PADEL'!R15","v":0},{"$f":"'OPEN PADEL'!S15","v":0},{"$f":"'OPEN PADEL'!T15","v":0},{"$f":"'OPEN PADEL'!U15","v":0},{"$f":"'OPEN PADEL'!V15","v":0},{"$f":"'OPEN PADEL'!W15","v":0},{"$f":"'OPEN PADEL'!X15","v":0},{"$f":"'OPEN PADEL'!Y15","v":0}]
["campo/turni"]
["campo/turni"]
["campo/turni"]
["campo/turni"]
["campo/turni"]
["campo/turni"]
["campo/turni"]
["campo/turni"]
["campo/turni"]
["campo/turni"]

{"sheet":"Es. OPEN PADEL ","index":2,"n_rows":38,"n_cols":28,"rows_kept":38,"cut":false,"hidden":false,"merged":[[1,12,1,21],[2,12,2,13],[4,14,4,16],[12,25,12,27],[13,25,14,27],[16,1,16,3],[36,1,36,5],[9,12,9,22],[10,12,10,22],[37,18,38,20],[12,1,15,1],[12,2,15,2],[12,4,15,4],[12,3,15,3]]}
[]
[null,null,null,null,null,null,null,null,null,null,null,null,"PARAMETRI TORNEO x stima n. INCONTRI MAX (da compilare)"]
[null,null,null,null,null,null,null,null,null,null,null,null,"n. giorni TORNEO",null,11,"n. campi con luci",3,"n. campi senza luci",null,"superficie","erba artificiale","indoor / outdoor","all' aperto"]
[]
[null,null,null,null,null,null,null,null,null,null,null,null,null,"formula DOPPI","2 set su 3 a 6 giochi con no-adv, terzo set tie break a 10 pti",null,null,"interv. tra DOPPI","1h30m","1° orario fer.","14:00:00","ult. orario fer.","22:00:00"]
[null,null,null,null,null,null,null,null,null,null,null,null,null,null,null,null,null,null,null,"1° orario fest.","10:00:00","ult. orario fest.","20:30:00"]
[]
[]
[]
[null,null,null,null,null,null,null,null,null,null,null,null,"PROGRAMMA TORNEO DI TERZA FASCIA"]
[null,null,null,null,null,null,null,null,null,null,null,null,"PROGRAMMAZIONE INDICATIVA DEGLI INCONTRI DI TUTTI I TABELLONI DEL TORNEO (05 02 - 15 02 2024)"]
[]
[null,"GARE","n° \nCOPPIE\nISCRITTE\n","n° \nPARTITE \nDA\nPIANIFICARE","ass.","     data","gg/mm","gg/mm","gg/mm","gg/mm","gg/mm","gg/mm","2024-02-05","2024-02-06","2024-02-07","2024-02-08","2024-02-09","2024-02-10","2024-02-11","2024-02-12","2024-02-13","2024-02-14","2024-02-15","gg/mm","gg/mm","INCONTRI"]
[null,null,null,null,null,"  giorno",{"$f":"IF(G13=\"gg/mm\",\"\",(IF(G13=\"\",\"\",G13)))","v":""},{"$f":"IF(H13=\"gg/mm\",\"\",(IF(H13=\"\",\"\",H13)))","v":""},"","","","","2024-02-05","2024-02-06","2024-02-07","2024-02-08","2024-02-09","2024-02-10","2024-02-11","2024-02-12","2024-02-13","2024-02-14","2024-02-15","","","DATA FINE TORNEO"]
[null,null,null,null,null,"    tipo",null,null,null,null,null,null,"feriale","feriale","feriale","feriale","feriale","feriale","festivo","feriale","feriale","feriale","feriale"]
[null,null,null,null,null,"campi/\nturni","IMPOSTA","IMPOSTA","IMPOSTA","IMPOSTA","IMPOSTA","IMPOSTA","IMPOSTA","IMPOSTA","IMPOSTA","IMPOSTA","IMPOSTA","IMPOSTA","IMPOSTA","IMPOSTA","IMPOSTA","IMPOSTA","IMPOSTA","IMPOSTA","IMPOSTA","n°","n.d."]
[null,null,null,null,null,"MAX INC.",{"$f":"IF('Es. IMPOSTA TURNI PADEL '!B2>0,'Es. IMPOSTA TURNI PADEL '!B2,0)","v":0},{"$f":"IF('Es. IMPOSTA TURNI PADEL '!C2>0,'Es. IMPOSTA TURNI PADEL '!C2,0)","v":0},{"$f":"IF('Es. IMPOSTA TURNI PADEL '!D2>0,'Es. IMPOSTA TURNI PADEL '!D2,0)","v":0},{"$f":"IF('Es. IMPOSTA TURNI PADEL '!E2>0,'Es. IMPOSTA TURNI PADEL '!E2,0)","v":0},{"$f":"IF('Es. IMPOSTA TURNI PADEL '!F2>0,'Es. IMPOSTA TURNI PADEL '!F2,0)","v":0},{"$f":"IF('Es. IMPOSTA TURNI PADEL '!G2>0,'Es. IMPOSTA TURNI PADEL '!G2,0)","v":0},{"$f":"IF('Es. IMPOSTA TURNI PADEL '!H2>0,'Es. IMPOSTA TURNI PADEL '!H2,0)","v":6},{"$f":"IF('Es. IMPOSTA TURNI PADEL '!I2>0,'Es. IMPOSTA TURNI PADEL '!I2,0)","v":6},{"$f":"IF('Es. IMPOSTA TURNI PADEL '!J2>0,'Es. IMPOSTA TURNI PADEL '!J2,0)","v":6},{"$f":"IF('Es. IMPOSTA TURNI PADEL '!K2>0,'Es. IMPOSTA TURNI PADEL '!K2,0)","v":11},{"$f":"IF('Es. IMPOSTA TURNI PADEL '!L2>0,'Es. IMPOSTA TURNI PADEL '!L2,0)","v":14},{"$f":"IF('Es. IMPOSTA TURNI PADEL '!M2>0,'Es. IMPOSTA TURNI PADEL '!M2,0)","v":18},{"$f":"IF('Es. IMPOSTA TURNI PADEL '!N2>0,'Es. IMPOSTA TURNI PADEL '!N2,0)","v":19},{"$f":"IF('Es. IMPOSTA TURNI PADEL '!O2>0,'Es. IMPOSTA TURNI PADEL '!O2,0)","v":15},{"$f":"IF('Es. IMPOSTA TURNI PADEL '!P2>0,'Es. IMPOSTA TURNI PADEL '!P2,0)","v":16},{"$f":"IF('Es. IMPOSTA TURNI PADEL '!Q2>0,'Es. IMPOSTA TURNI PADEL '!Q2,0)","v":8},{"$f":"IF('Es. IMPOSTA TURNI PADEL '!R2>0,'Es. IMPOSTA TURNI PADEL '!R2,0)","v":3},{"$f":"IF('Es. IMPOSTA TURNI PADEL '!S2>0,'Es. IMPOSTA TURNI PADEL '!S2,0)","v":0},{"$f":"IF('Es. IMPOSTA TURNI PADEL '!T2>0,'Es. IMPOSTA TURNI PADEL '!T2,0)","v":0}]
[null,"DOPPIO MASCHILE",null,null,null,null,null,null,null,null,null,null,"Q 1° \n ","Q 2°  \n(6)","Q 3° \n(6)","1° turno","2° turno","32esimi","16esimi","OTTAVI","QUARTI ","SEMIFINALI ","FINALE"]
[null,null,71,{"$f":"IF(C19>0,C19-Z19-1,0)","v":0},0,{"$f":"E19/C19","v":0},null,null,null,null,null,null,6,6,6,7,10,10,10,8,4,2,1,null,null,{"$f":"SUM(G19:Y19)","v":70},null,{"$f":"AA19/Z19","v":0}]
[null,"CONCLUSIONE SEZIONE 4°",null,null,null,null,null,null,null,null,null,null,null,null,null,null,null,null,null,"QUARTI ","SEMIFINALI ","FINALE"]
[null,null,6,{"$f":"IF(C21>0,C21-Z21-1,0)","v":0},0,{"$f":"E21/C21","v":0},null,null,null,null,null,null,null,null,null,null,null,null,null,2,2,1,null,null,null,{"$f":"SUM(G21:Y21)","v":5},null,{"$f":"AA21/Z21","v":0}]
[null,"CONCLUSIONE SEZIONE xx"]
[null,null,0,{"$f":"IF(C23>0,C23-Z23-1,0)","v":0},0,{"$f":"E23/C23","v":{"$error":"#DIV/0!"}},null,null,null,null,null,null,null,null,null,null,null,null,null,null,null,null,null,null,null,{"$f":"SUM(G23:Y23)","v":0},null,{"$f":"AA23/Z23","v":{"$error":"#DIV/0!"}}]
[null,"DOPPIO FEMMINILE",null,null,null,null,null,null,null,null,null,null,null,null,null,"Q 1° turno","32esimi \n(8)",null,"16esimi","OTTAVI(5)","QUARTI ","SEMIFINALI ","FINALE"]
[null,null,30,{"$f":"IF(C25>0,C25-Z25-1,0)","v":0},0,{"$f":"E25/C25","v":0},null,null,null,null,null,null,null,null,null,4,4,4,5,5,4,2,1,null,null,{"$f":"SUM(G25:Y25)","v":29},null,{"$f":"AA25/Z25","v":0}]
[null,"CONCLUSIONE SEZIONE 4°",null,null,null,null,null,null,null,null,null,null,null,null,null,null,null,null,null,null,"SEMIFINALI ","FINALE"]
[null,null,4,{"$f":"IF(C27>0,C27-Z27-1,0)","v":0},0,{"$f":"E27/C27","v":0},null,null,null,null,null,null,null,null,null,null,null,null,null,null,2,1,null,null,null,{"$f":"SUM(G27:Y27)","v":3},null,{"$f":"AA27/Z27","v":0}]
[null,"CONCLUSIONE SEZIONE xx"]
[null,null,0,{"$f":"IF(C29>0,C29-Z29-1,0)","v":0},0,{"$f":"E29/C29","v":{"$error":"#DIV/0!"}},null,null,null,null,null,null,null,null,null,null,null,null,null,null,null,null,null,null,null,{"$f":"SUM(G29:Y29)","v":0},null,{"$f":"AA29/Z29","v":{"$error":"#DIV/0!"}}]
[null,"DOPPIO MISTO",null,null,null,null,null,null,null,null,null,null,null,null,null,null,null,"OTTAVI",null,null,"QUARTI ","SEMIFINALI ","FINALE"]
[null,null,16,{"$f":"IF(C31>0,C31-Z31-1,0)","v":0},0,{"$f":"E31/C31","v":0},null,null,null,null,null,null,null,null,null,null,null,4,4,null,4,2,1,null,null,{"$f":"SUM(G31:Y31)","v":15},null,{"$f":"AA31/Z31","v":0}]
[null,"CONCLUSIONE SEZIONE xx"]
[null,null,0,{"$f":"IF(C33>0,C33-Z33-1,0)","v":0},0,{"$f":"E33/C33","v":{"$error":"#DIV/0!"}},null,null,null,null,null,null,null,null,null,null,null,null,null,null,null,null,null,null,null,{"$f":"SUM(G33:Y33)","v":0},null,{"$f":"AA33/Z33","v":{"$error":"#DIV/0!"}}]
[null,"CONCLUSIONE SEZIONE xx"]
[null,null,0,{"$f":"IF(C35>0,C35-Z35-1,0)","v":0},0,{"$f":"E35/C35","v":{"$error":"#DIV/0!"}},null,null,null,null,null,null,null,null,null,null,null,null,null,null,null,null,null,null,null,{"$f":"SUM(G35:Y35)","v":0},null,{"$f":"AA35/Z35","v":{"$error":"#DIV/0!"}}]
[null,"TOTALI",{"$f":"SUM(C19:C35)","v":127},{"$f":"SUM(D18:D35)","v":0},{"$f":"SUM(E19,E25)","v":0},{"$f":"E36/C36","v":0}]
[null,"NUMERO DI PARTITE SCHEDULATE\nE CONTROLLO CON MAX INC.",null,null,null,null,{"$f":"SUM(G19,G21,G23,G25,G27,G29,G31,G33,G35)","v":0},{"$f":"SUM(H19,H21,H23,H25,H27,H29,H31,H33,H35)","v":0},0,0,0,0,{"$f":"SUM(M19,M21,M23,M25,M27,M29,M31,M33,M35)","v":6},{"$f":"SUM(N19,N21,N23,N25,N27,N29,N31,N33,N35)","v":6},6,11,14,18,19,15,16,8,3,0,0,{"$f":"SUM(G37:Y37)","v":122},{"$f":"SUM(AA19,AA21,AA23,AA25,AA27,AA29,AA31,AA33,AA35)","v":0},{"$f":"AA37/Z37","v":0}]
[null,null,null,null,null,null,null,null,null,null,null,null,"In base alle accettazioni per la conclusione delle sezioni intermedie inserire anche le partite dei relativi tabelloni",null,null,null,null,null,"G.A. xxxxxxxxxxxxx"]

{"sheet":"Es. IMPOSTA TURNI PADEL ","index":3,"n_rows":23,"n_cols":20,"rows_kept":23,"cut":false,"hidden":false,"merged":[]}
["N° partite \nschedulate",{"$f":"'Es. OPEN PADEL '!G37","v":0},{"$f":"'Es. OPEN PADEL '!H37","v":0},{"$f":"'Es. OPEN PADEL '!I37","v":0},{"$f":"'Es. OPEN PADEL '!J37","v":0},{"$f":"'Es. OPEN PADEL '!K37","v":0},{"$f":"'Es. OPEN PADEL '!L37","v":0},{"$f":"'Es. OPEN PADEL '!M37","v":6},{"$f":"'Es. OPEN PADEL '!N37","v":6},{"$f":"'Es. OPEN PADEL '!O37","v":6},{"$f":"'Es. OPEN PADEL '!P37","v":11},{"$f":"'Es. OPEN PADEL '!Q37","v":14},{"$f":"'Es. OPEN PADEL '!R37","v":18},{"$f":"'Es. OPEN PADEL '!S37","v":19},{"$f":"'Es. OPEN PADEL '!T37","v":15},{"$f":"'Es. OPEN PADEL '!U37","v":16},{"$f":"'Es. OPEN PADEL '!V37","v":8},{"$f":"'Es. OPEN PADEL '!W37","v":3},{"$f":"'Es. OPEN PADEL '!X37","v":0},{"$f":"'Es. OPEN PADEL '!Y37","v":0}]
["Campi/Turni",{"$f":"SUM(B6:B20)","v":0},0,0,0,0,0,{"$f":"SUM(H6:H20)","v":6},6,6,11,14,18,19,15,16,8,3,0,0]
["data",{"$f":"'Es. OPEN PADEL '!G13","v":"gg/mm"},{"$f":"'Es. OPEN PADEL '!H13","v":"gg/mm"},{"$f":"'Es. OPEN PADEL '!I13","v":"gg/mm"},{"$f":"'Es. OPEN PADEL '!J13","v":"gg/mm"},{"$f":"'Es. OPEN PADEL '!K13","v":"gg/mm"},{"$f":"'Es. OPEN PADEL '!L13","v":"gg/mm"},{"$f":"'Es. OPEN PADEL '!M13","v":"2024-02-05"},{"$f":"'Es. OPEN PADEL '!N13","v":"2024-02-06"},{"$f":"'Es. OPEN PADEL '!O13","v":"2024-02-07"},{"$f":"'Es. OPEN PADEL '!P13","v":"2024-02-08"},{"$f":"'Es. OPEN PADEL '!Q13","v":"2024-02-09"},{"$f":"'Es. OPEN PADEL '!R13","v":"2024-02-10"},{"$f":"'Es. OPEN PADEL '!S13","v":"2024-02-11"},{"$f":"'Es. OPEN PADEL '!T13","v":"2024-02-12"},{"$f":"'Es. OPEN PADEL '!U13","v":"2024-02-13"},{"$f":"'Es. OPEN PADEL '!V13","v":"2024-02-14"},{"$f":"'Es. OPEN PADEL '!W13","v":"2024-02-15"},{"$f":"'Es. OPEN PADEL '!X13","v":"gg/mm"},{"$f":"'Es. OPEN PADEL '!Y13","v":"gg/mm"}]
["giorno",{"$f":"'Es. OPEN PADEL '!G14","v":""},{"$f":"'Es. OPEN PADEL '!H14","v":""},{"$f":"'Es. OPEN PADEL '!I14","v":""},{"$f":"'Es. OPEN PADEL '!J14","v":""},{"$f":"'Es. OPEN PADEL '!K14","v":""},{"$f":"'Es. OPEN PADEL '!L14","v":""},{"$f":"'Es. OPEN PADEL '!M14","v":"2024-02-05"},{"$f":"'Es. OPEN PADEL '!N14","v":"2024-02-06"},{"$f":"'Es. OPEN PADEL '!O14","v":"2024-02-07"},{"$f":"'Es. OPEN PADEL '!P14","v":"2024-02-08"},{"$f":"'Es. OPEN PADEL '!Q14","v":"2024-02-09"},{"$f":"'Es. OPEN PADEL '!R14","v":"2024-02-10"},{"$f":"'Es. OPEN PADEL '!S14","v":"2024-02-11"},{"$f":"'Es. OPEN PADEL '!T14","v":"2024-02-12"},{"$f":"'Es. OPEN PADEL '!U14","v":"2024-02-13"},{"$f":"'Es. OPEN PADEL '!V14","v":"2024-02-14"},{"$f":"'Es. OPEN PADEL '!W14","v":"2024-02-15"},{"$f":"'Es. OPEN PADEL '!X14","v":""},{"$f":"'Es. OPEN PADEL '!Y14","v":""}]
["tipo",{"$f":"'Es. OPEN PADEL '!G15","v":0},{"$f":"'Es. OPEN PADEL '!H15","v":0},{"$f":"'Es. OPEN PADEL '!I15","v":0},{"$f":"'Es. OPEN PADEL '!J15","v":0},{"$f":"'Es. OPEN PADEL '!K15","v":0},{"$f":"'Es. OPEN PADEL '!L15","v":0},{"$f":"'Es. OPEN PADEL '!M15","v":"feriale"},{"$f":"'Es. OPEN PADEL '!N15","v":"feriale"},{"$f":"'Es. OPEN PADEL '!O15","v":"feriale"},{"$f":"'Es. OPEN PADEL '!P15","v":"feriale"},{"$f":"'Es. OPEN PADEL '!Q15","v":"feriale"},{"$f":"'Es. OPEN PADEL '!R15","v":"feriale"},{"$f":"'Es. OPEN PADEL '!S15","v":"festivo"},{"$f":"'Es. OPEN PADEL '!T15","v":"feriale"},{"$f":"'Es. OPEN PADEL '!U15","v":"feriale"},{"$f":"'Es. OPEN PADEL '!V15","v":"feriale"},{"$f":"'Es. OPEN PADEL '!W15","v":"feriale"},{"$f":"'Es. OPEN PADEL '!X15","v":0},{"$f":"'Es. OPEN PADEL '!Y15","v":0}]
["campo/turni",null,null,null,null,null,null,2,2,2,4,5,6,7,5,6,3,2]
["campo/turni",null,null,null,null,null,null,2,2,2,4,5,6,6,5,5,3,1]
["campo/turni",null,null,null,null,null,null,2,2,2,3,4,6,6,5,5,2]
["campo/turni"]
["campo/turni"]
["campo/turni"]
["campo/turni"]
["campo/turni"]
["campo/turni"]
["campo/turni"]
[]
[]
[]
[]
[]
[]
[null,null,null,null,null,null,null,null,null,null,null,null,null,"N.B. IL TORNEO DURA 11 GIORNI anzichè 17 , selezionare le prime colonne e 'nasconderle'"]
[null,null,null,null,null,null,null,null,null,null,null,null,null,"IN QUESTO ES. LE COLONNE DA B A G SONO NASCOSTE"]

{"sheet":"PARAMETRI","index":4,"n_rows":32,"n_cols":3,"rows_kept":32,"cut":false,"hidden":true,"merged":[]}
["MATCH_FORMAT",null,"ORARI"]
["2 set su 3 a 4 giochi",null,"08:30:00"]
["2 set su 3 a 4 giochi con no-adv",null,"09:00:00"]
["2 set su 3 a 4 giochi con no-adv, terzo set tie break a 10 pti",null,"09:30:00"]
["2 set su 3 a 4 giochi con no-adv, terzo set tie break a 7 pti",null,"10:00:00"]
["2 set su 3 a 6 giochi",null,"10:30:00"]
["2 set su 3 a 6 giochi con no-adv",null,"11:00:00"]
["2 set su 3 a 6 giochi, terzo set tie break a 10 pti",null,"11:30:00"]
["2 set su 3 a 6 giochi, terzo set tie break a 7 pti",null,"12:00:00"]
["2 set su 3 a 6 giochi con no-adv, terzo set tie break a 10 pti",null,"12:30:00"]
["2 set su 3 a 6 giochi con no-adv, terzo set tie break a 7 pti",null,"13:00:00"]
["3 set su 5 a 4 giochi, con o senza no-adv e tie break decisivo dell'incontr",null,"13:30:00"]
["3 set su 5 a 6 giochi",null,"14:00:00"]
["3 set su 5 a 6 giochi con no adv",null,"14:30:00"]
["partita a 9 giochi con tie break a 7 pti",null,"15:00:00"]
["unico set a sei giochi con tie break",null,"15:30:00"]
[null,null,"16:00:00"]
[null,null,"16:30:00"]
[null,null,"17:00:00"]
[null,null,"17:30:00"]
[null,null,"18:00:00"]
[null,null,"18:30:00"]
[null,null,"19:00:00"]
[null,null,"19:30:00"]
[null,null,"20:00:00"]
[null,null,"20:30:00"]
[null,null,"21:00:00"]
[null,null,"21:30:00"]
[null,null,"22:00:00"]
[null,null,"22:30:00"]
[null,null,"23:00:00"]
[null,null,"23:30:00"]